Cogmind - Beta 13 @@@ ROGUE MODE // 2024.06.30 @ 20:33:59 Player: Voidling Result: Self-destructed Performance ------------- Evolutions (2) 1000 Regions Visited (4) 800 Robots Destroyed (8) 40 Value Destroyed (120) 120 Prototype IDs (0) 0 Alien Tech Used (0) 0 Bonus (0) 0 TOTAL SCORE: 1960 Bonus ------- None Cogmind --------- Core Integrity 387/550 Matter 217/300 Energy 100/100 System Corruption 0% Temperature Cool (0) Movement Core (50) Location -8/Materials Parts ------- > --- POWER (1) -------- (None) > --- PROPULSION (4) --- (None) > --- UTILITY (3) ------ Signal Interpreter > --- WEAPON (3) ------- (None) > --- INVENTORY (5) ---- Terrain Scanner Targeting Computer EM Pulse Gun Scythe Peak State ------------ > --- POWER ------------ Nuclear Core > --- PROPULSION ------- Flight Unit Flight Unit Flight Unit Flight Unit > --- UTILITY ---------- Sensor Array Signal Interpreter > --- WEAPON ----------- Medium Laser > --- INVENTORY -------- Ion Engine Terrain Scanner Targeting Computer EM Pulse Gun Scythe [Rating: 10] Favorites ----------- Power Ion Engine Engine Ion Engine Power Core Nuclear Core Propulsion Light Treads Treads Light Treads Flight Unit Flight Unit Utility Signal Interpreter Device Sensor Array Storage High-capacity Storage Unit Processor Signal Interpreter Weapon EM Pulse Gun Energy Gun EM Pulse Gun Build | -11 -10 -10 -9 -8 ------- Run | Yrd Mat Min Mat Mat Slots Evolved 4 | . . . 2 2 Power . | . . . . . Propulsion 2 | . . . 1 1 Utility 1 | . . . 1 . Weapon 1 | . . . . 1 Parts Attached 16 | 3 5 . 5 3 Power 3 | . 1 . . 2 Engine 2 | . 1 . . 1 Core 1 | . . . . 1 Reactor . | . . . . . Propulsion 6 | 2 . . 3 1 Treads 2 | 2 . . . . Leg . | . . . . . Wheel . | . . . . . Hover . | . . . . . Flight 4 | . . . 3 1 Utility 4 | 1 2 . 1 . Device 1 | . . . 1 . Storage 2 | 1 1 . . . Processor 1 | . 1 . . . Hackware . | . . . . . Protection . | . . . . . Artifact . | . . . . . Weapon 3 | . 2 . 1 . Energy Gun 3 | . 2 . 1 . Energy Cannon . | . . . . . Ballistic Gun . | . . . . . Ballistic Cannon . | . . . . . Launcher . | . . . . . Special Weapon . | . . . . . Impact Weapon . | . . . . . Slashing Weapon . | . . . . . Piercing Weapon . | . . . . . Special Melee Weapon . | . . . . . Unidentified Prototypes . | . . . . . Parts Lost 4 | . . . 1 3 Power 1 | . . . . 1 Propulsion 2 | . . . . 2 Utility . | . . . . . Weapon 1 | . . . 1 . Highest Loss Streak 3 | . . . 1 3 To Critical Strikes . | . . . . . Average Slot Usage (%) 88 | . 93 100 87 63 Engine 10 | . 9 14 11 6 Treads 21 | . 28 28 20 . Flight 4 | . . . 3 29 Device 5 | . . . 11 9 Storage 10 | . 14 14 10 . Processor 11 | . 12 14 11 9 Energy Gun 22 | . 28 28 20 7 Naked Turns . | . . . . . Heaviest Build 50 | 5 49 49 50 10 Greatest Support 40 | 40 40 40 40 16 Greatest Overweight (x) 1 | . 1 1 1 1 Average Overweight (x) . | . . 1 . . Largest Inventory Capacity 20 | 8 20 20 20 5 Average Capacity 15 | 6 16 20 18 5 Most Carried 9 | 5 8 7 9 5 Average Carried 5 | 2 6 7 6 4 Final Capacity 20 | 8 20 20 5 5 Final Carried 7 | 5 7 7 5 4 Class Distribution -------------------- 89% | Mutant 10% | Scavenger-Sprinter Dominant Class ---------------- Mutant | -10/Materials Mutant | -10/Mines Mutant | -9/Materials Scavenger-Sprinter | -8/Materials Resources | -11 -10 -10 -9 -8 ----------- Run | Yrd Mat Min Mat Mat Matter Collected 248 | 157 50 . 41 . Remotely . | . . . . . Salvage Created 262 | . 50 . 212 . Parts 15 | . 1 . 14 . Haulers Intercepted . | . . . . . Recyclers Shooed . | . . . . . Parts Field Recycled . | . . . . . Retrieved Matter . | . . . . . Parts Self-Destructed . | . . . . . Prevented . | . . . . . Kills | -11 -10 -10 -9 -8 ------- Run | Yrd Mat Min Mat Mat Combat Hostiles Destroyed 7 | . 1 . 6 . Guns 7 | . 1 . 6 . Classes Destroyed 3 | . 1 . 2 . Recycler 1 | . . . 1 . Swarmer 6 | . . . 6 . Grunt 1 | . 1 . . . Best Kill Streak 7 | . 1 . 7 . Combat Bots Only 6 | . 1 . 6 . Max Kills in Single Turn 2 | . 1 . 2 . Gunslinging 1 | . . . 1 . Exploded . | . . . . . Melee . | . . . . . Uniques/NPCs Destroyed . | . . . . . Combat | -11 -10 -10 -9 -8 -------- Run | Yrd Mat Min Mat Mat Hostile Shots Fired 79 | . 4 . 43 32 Missed 32 | . 1 . 13 18 Damage Taken 593 | . 33 . 241 319 Core 178 | . . . 15 163 Absorbed by Shields . | . . . . . Core Remaining (%) 98 | 100 . 100 96 . Volleys Fired 14 | . 3 . 11 . Largest 2 | . 2 . 2 . Hottest 80 | . 80 . 80 . Shots Fired 23 | . 6 . 17 . Gun 23 | . 6 . 17 . Cannon . | . . . . . Launcher . | . . . . . Special . | . . . . . Kinetic . | . . . . . Thermal . | . . . . . Explosive . | . . . . . Electromagnetic 23 | . 6 . 17 . Robot Hit Streak 6 | . 6 . 3 . Robot Miss Streak 4 | . . . 4 . Penetration Max . | . . . . . Secondary Targets 2 | . . . 2 . Max Gunslinging Chain 1 | . . . 1 . Shots Hit Robots 13 | . 6 . 7 . Core Hits 11 | . 1 . 7 3 Critical Kills . | . . . . . Critical Parts Destroyed . | . . . . . Critical Strikes . | . . . . . Melee Attacks . | . . . . . Impact . | . . . . . Slashing . | . . . . . Piercing . | . . . . . Sneak Attacks . | . . . . . Combat Hostiles . | . . . . . Follow-up Attacks . | . . . . . Damage Inflicted 258 | . 77 . 159 22 Guns 183 | . 77 . 106 . Cannons . | . . . . . Explosions 53 | . . . 53 . Melee . | . . . . . Ramming 22 | . . . . 22 Kinetic . | . . . . . Thermal 53 | . . . 53 . Explosive . | . . . . . Electromagnetic 183 | . 77 . 106 . Impact . | . . . . . Slashing . | . . . . . Piercing . | . . . . . Highest Corruption . | . . . . . Average Corruption . | . . . . . Corruption Purged . | . . . . . Corruption Blocked . | . . . . . Overload Shots . | . . . . . Overflow Damage 21 | . . . 21 . Projectiles . | . . . . . Explosions 21 | . . . 21 . Melee . | . . . . . Knockbacks . | . . . . . Impact . | . . . . . Kinetic . | . . . . . Secondary . | . . . . . Self-Inflicted Damage 11 | . . . . 11 Shots . | . . . . . Rammed 4 | . . . . 4 Targets Rammed 4 | . . . . 4 Kicked . | . . . . . Crushed . | . . . . . Highest Temperature 36 | . 27 . 36 7 Average Temperature 16 | . 17 . 16 7 Received Heat Transfer 63 | . 18 . . 45 Siege Activations . | . . . . . Robots Corrupted . | . . . . . Combat Hostiles . | . . . . . Parts Fried . | . . . . . Impact Corruptions . | . . . . . Robots Melted . | . . . . . Combat Hostiles . | . . . . . Parts Melted . | . . . . . Heat Transferred 100 | . . . 100 . Parts Sabotaged . | . . . . . Parts Stolen . | . . . . . Parts Stripped . | . . . . . Power Chain Reactions 1 | . . . 1 . Alert | -11 -10 -10 -9 -8 ------- Run | Yrd Mat Min Mat Mat Peak Influence 165 | . 75 5 165 104 Initial 69 | . . 5 1 69 Average 32 | . 30 5 35 80 Maximum Alert Level . | . . . . . Low Security (%) 100 | 100 100 100 100 100 Level 1 . | . . . . . Level 2 . | . . . . . Level 3 . | . . . . . Level 4 . | . . . . . Level 5 . | . . . . . High Security . | . . . . . Max Security . | . . . . . Squads Dispatched 6 | . 4 . . 2 Investigation 1 | . . . . 1 Extermination . | . . . . . Reinforcement 5 | . 4 . . 1 Assault . | . . . . . Garrison . | . . . . . Intercept . | . . . . . Searches Triggered . | . . . . . Construction Impeded . | . . . . . Haulers Reinforced . | . . . . . Active Scanning Responses . | . . . . . Cargo Convoy Interrupts . | . . . . . Stealth | -11 -10 -10 -9 -8 --------- Run | Yrd Mat Min Mat Mat Distress Signals 2 | . 1 . . 1 Communications Jammed . | . . . . . Distress Signals . | . . . . . Times Spotted 32 | . 10 . 8 14 Peak Tracking Total 13 | . 5 . 5 13 Tactical Retreats 1 | . . . . 1 Traps | -11 -10 -10 -9 -8 ------- Run | Yrd Mat Min Mat Mat Traps Triggered . | . . . . . Indirectly . | . . . . . Trap Hack Attempts . | . . . . . Triggered . | . . . . . Disarmed . | . . . . . Reprogrammed . | . . . . . Reused . | . . . . . Traps Extracted . | . . . . . Installed . | . . . . . Triggered . | . . . . . Machines | -11 -10 -10 -9 -8 ---------- Run | Yrd Mat Min Mat Mat Machines Disabled 2 | . . . 2 . Max in Single Turn 1 | . . . 1 . Machines Repaired . | . . . . . Machines Dismantled . | . . . . . Machines Sabotaged . | . . . . . Overloaded Fab Kills . | . . . . . Hacking | -11 -10 -10 -9 -8 --------- Run | Yrd Mat Min Mat Mat Machines Accessed 3 | . 1 . 1 1 Terminals 3 | . 1 . 1 1 Fabricators . | . . . . . Repair Stations . | . . . . . Recycling Units . | . . . . . Scanalyzers . | . . . . . Garrison Access . | . . . . . Total Hacks 7 | . 2 . 2 3 Successful 2 | . 1 . 1 . Failed 5 | . 1 . 1 3 Catastrophic . | . . . . . Database Lockouts . | . . . . . Manual . | . . . . . Terminals 7 | . 2 . 2 3 Fabricators . | . . . . . Repair Stations . | . . . . . Recycling Units . | . . . . . Scanalyzers . | . . . . . Garrison Access . | . . . . . Terminal Hacks 2 | . 1 . 1 . Unreport Threat 2 | . 1 . 1 . Fabricator Hacks . | . . . . . Repair Station Hacks . | . . . . . Recycling Unit Hacks . | . . . . . Scanalyzer . | . . . . . Garrison Access Hacks . | . . . . . Unauthorized Hacks . | . . . . . Terminals . | . . . . . Fabricators . | . . . . . Repair Stations . | . . . . . Recycling Units . | . . . . . Scanalyzers . | . . . . . Garrison Access . | . . . . . Data Cores Recovered . | . . . . . Used . | . . . . . Hacking Detections 2 | . 1 . . 1 Full Trace Events 1 | . . . . 1 Feedback Events . | . . . . . Feedback Blocked . | . . . . . Robot Schematics Acquired . | . . . . . Robots Built . | . . . . . Authchips . | . . . . . Time . | . . . . . Total Robot Build Rating . | . . . . . Part Schematics Acquired . | . . . . . Parts Built . | . . . . . Authchips . | . . . . . Time . | . . . . . Total Part Build Rating . | . . . . . Parts Repaired . | . . . . . Time . | . . . . . Parts Recycled . | . . . . . Recycled Matter . | . . . . . Retrieved Matter . | . . . . . Retrieved Components . | . . . . . Parts Scanalyzed . | . . . . . Part Schematics Acquired . | . . . . . Parts Damaged . | . . . . . Bothacking | -11 -10 -10 -9 -8 ------------ Run | Yrd Mat Min Mat Mat Used RIF Installer . | . . . . . Robots Hacked . | . . . . . Non-combat . | . . . . . Combat . | . . . . . Robot Hacks Applied . | . . . . . Relay Couplers Released . | . . . . . Fabnet Peak Effective % . | . . . . . Robots Rewired . | . . . . . Allies Hacked . | . . . . . Hacks Repelled . | . . . . . Allies | -11 -10 -10 -9 -8 -------- Run | Yrd Mat Min Mat Mat Total Allies . | . . . . . Largest Group . | . . . . . Highest-Rated Group . | . . . . . Highest-Rated Ally . | . . . . . Total Orders . | . . . . . Ally Attacks . | . . . . . Total Damage . | . . . . . Kills . | . . . . . Allies Corrupted . | . . . . . Allies Melted . | . . . . . Intel | -11 -10 -10 -9 -8 ------- Run | Yrd Mat Min Mat Mat Robot Analysis Total . | . . . . . Derelict Logs Recovered . | . . . . . Drone Launches . | . . . . . Drone Recoveries . | . . . . . Exploration | -11 -10 -10 -9 -8 ------------- Run | Yrd Mat Min Mat Mat Turns Passed 908 | 84 317 86 327 94 Spaces Moved 635 | 50 138 35 167 245 Core 13 | 5 . . . 8 Treads 327 | 45 138 35 109 . Legs . | . . . . . Wheels . | . . . . . Hover . | . . . . . Flight 295 | . . . 58 237 Fastest Speed 31 | 50 160 240 34 31 Average Speed 129 | 149 215 240 168 34 Slowest Speed 240 | 160 240 240 240 120 Overloaded Moves . | . . . . . Propulsion Burnouts . | . . . . . Robots Hopped 9 | . . . . 9 Cave-ins Triggered . | . . . . . Exploration Rate (%) 23 | 4 39 11 29 33 Regions Visited 4 Branch Regions 1 Pre-discovered Areas . | . . . . . Known Exits Taken 3 | . 1 1 1 . Unknown Exits Taken 1 | 1 . . . . Scrap Searched . | . . . . . Spaces Dug . | . . . . . Terrain Destroyed . | . . . . . Melee . | . . . . . Projectile . | . . . . . AOE . | . . . . . Terrain Rammed . | . . . . . Walls Destroyed . | . . . . . Machines Disabled . | . . . . . Actions | -11 -10 -10 -9 -8 --------- Run | Yrd Mat Min Mat Mat Total 693 | 60 152 38 196 247 Wait 11 | . 1 4 4 2 Move 613 | 49 137 34 166 227 Hop 9 | . . . . 9 Pick Up 19 | 8 6 . 5 . Fast Attach . | . . . . . Attach 12 | 3 4 . 3 2 Detach 1 | . . . . 1 Swap 4 | . 1 . 2 1 Drop 6 | . . . 5 1 Fire 14 | . 3 . 11 . Melee . | . . . . . Ram 4 | . . . . 4 Kick . | . . . . . Crush . | . . . . . Escape Stasis . | . . . . . Rewire . | . . . . . Trap . | . . . . . Miscellaneous . | . . . . . Route ------- -11/Scrapyard -10/Materials -10/Mines -9/Materials -8/Materials (discovered 1 exit: *Fac) History --------- Turn | Location | Event 36 | -11/Scrapyard | Discovered new exit (range 15) 85 | -11/Scrapyard | Entered Materials 310 | -10/Materials | Build established: Mutant 368 | -10/Materials | Discovered new exit (range 12) 397 | -10/Materials | Identified exit to Mines 402 | -10/Materials | Entered Mines 462 | -10/Mines | Discovered new exit (range 9) 483 | -10/Mines | Identified exit to Materials 488 | -10/Mines | Entered Materials 488 | -9/Materials | Evolved 2 slots: Propulsion x1, Utility x1 799 | -9/Materials | Discovered new exit (range 4) 815 | -9/Materials | Identified exit to Materials 815 | -9/Materials | Entered another Materials area 815 | -8/Materials | Evolved 2 slots: Propulsion x1, Weapon x1 876 | -8/Materials | Discovered new exit (range 6) 877 | -8/Materials | Identified exit to Factory 909 | -8/Materials | Self-destructed Last Messages --------------- Knocked back. C-17 Slicer knocked back. U-05 Engineer lays Concrete. R-06 Scavenger collects Med. Laser. K-01 Serf collects debris. U-05 Engineer lays Concrete. The unstable cave ceiling collapses. Critical hit (Burn: +37). K-01 Serf collects debris. Flight Unit severed. Flight Unit destroyed. K-01 Serf collects debris. Slammed into G-50 Soldier. Ion Engine destroyed. K-01 Serf cleans the Electrolysis Chamber. Sensor Array severed. Slammed into G-47 Trooper. Destabilizing: System interference. Signal Interpreter temporarily disabled. Slammed into G-47 Trooper. Map ----- +----------------------------------------------------+ | ????????????????????????? ???????????????? | | ???????????????????????? ???????????????? | | ???????????????????????? ???????????????? | | ???????????????????????? ???????????????? | | ???????????????????????? !???????????????? | | ????????????????????????] !???????????????? | | ???????????????????????? !???????????????? | | ????????????????????????# ##??????????????? | | ????????????????????????# # ??????????????? | | ????????????????????????# ???????????????? | | ????????????????????????# #???????????????? | | ?????????????????######## #???????????????? | | ?????????????????# # ###########?????? | | ?????????????????#! """ # # * #?????? | | ?????????????????# """ + # #?????? | | ?????????????????# """ #= # !#?????? | | ?????????????????#! # / """ #?????? | | ?????????????????# [ ## # """ +?????? | | ?????????????????##+###### # """ "T" #?????? | | ??????????????????#!#????# # """ #?????? | | ??????????????????# #????# # [ #?????? | | ??????????????????# #????# ####/######?????? | | ??????????????????# #????# #??# ########???? | | ??????????????????# #????# #??# #! #???? | | ??????????????????#c#????# #??# # = #???? | | ??????????????????#@#??###H???# # #???? | | ?????????????????# g ### ??# #! #???? | | ???????????????? "# # #???? | | ??????????????? ## ### / #???? | | ?????????????##+######?# ## ########???? | | ?????????????# ???# ??# #??????????? | | ?????????????#==! ????##+#### #??????????? | | ?????????????#==! "????# # #??????????? | | ????????????##=!! T????# # #??????????? | | ?????######## "????#""" # #??????????? | | ?????# #?? ????#""" # #??????????? | | ?????# #####+######""" # #??????????? | | ?????# ## # #??????????? | | ?????# ## < #### #######+#### | | ?????# ## * | | ?????# ###### | | ?????### ###????# | | ???????# #??????# # ######+### ##### | | ???????# ######## ####??? ?? #???? | | ?#####?# ## ! ###?????# !!! #?? #???? | | # ?# ## # #???????# !! #???#???? | | #[ """ # ## # #####???# !! #???????? | | # """ # ## # !!#???#######???????? | | #! """ + ## # !!#?????????????????? | | # # ## # !!#?????????????????? | +----------------------------------------------------+ Best States ------------- Heat Dissipation 31 Energy Generation 14 Energy Capacity 250 Matter Stores 247 Matter Capacity 300 Sight Range 16 Robot Scan Range 14 Terrain Scan Density 10 Evasion (%) 63 Recoil Reduction 2 Item Schematics ----------------- None Robot Schematics ------------------ None Fabricated ------------ Nothing Alien Tech Used ----------------- None Achievements -------------- None Challenges ------------ None Game ------ Seed CryofiberAbsorptionDevice Manual? 0 Play Time 00:13:14 Cumulative 2.8 hours Start 2024.06.30 @ 20:20:41 End 2024.06.30 @ 20:33:59 Sessions 1 Manual Loads 0 Difficulty Rogue Special Mode None Game No. 7 Rogue 5 Adventurer 2 Explorer 0 Win Type - Total 0 Types 0/0/0/0/0/0/0/0/0 Lore% 1 Gallery% 8 Achievement% 9 Wizard Run 0 Options --------- Layout 1 ASCII 0 Keyboard 0 Movement Numpad Keybinds 0 Fullscreen 1 Font 24/Smallcaps Map View 50x35 Zoom Use 0% Tactical HUD 0 Map Filters NONE Filters NONE Steam 1 RUN: 7515cd5c-07aa-4d50-86aa-26d8ffda016e